fUSD/lending_fUSD_20250520
["ID","MTS","AMOUNT","RATE_DAILY","PERIOD"]
[361721294,1747727441926,-306.47,0.000125,2]
[361721295,1747727441936,-306.47,0.000125,2]
[361721296,1747727441947,-306.47,0.000125,2]
[361721297,1747727441957,-306.47,0.000125,2]
[361721298,1747727441967,-306.47,0.000125,2]
[361721299,1747727441977,-306.47,0.000125,2]
[361721300,1747727441988,-306.47,0.000125,2]
[361721301,1747727441997,-306.47,0.000125,2]
[361721302,1747727442008,-306.47,0.000125,2]
[361721303,1747727442018,-306.47,0.000125,2]
[361721304,1747727442028,-306.47,0.000125,2]
[361721305,1747727442038,-306.47,0.000125,2]
[361721306,1747727442049,-306.47,0.000125,2]
[361721307,1747727442059,-306.47,0.000125,2]
[361721308,1747727442069,-306.47,0.000125,2]
[361721309,1747727442080,-306.47,0.000125,2]
[361721310,1747727442090,-306.47,0.000125,2]
[361721311,1747727442104,-306.47,0.000125,2]
[361721312,1747727442115,-306.47,0.000125,2]
[361721313,1747727442125,-306.47,0.000125,2]
[361721314,1747727442142,-306.47,0.000125,2]
[361721315,1747727442152,-306.47,0.000125,2]
[361721316,1747727442163,-306.47,0.000125,2]
[361721317,1747727442175,-306.47,0.000125,2]
[361721318,1747727442184,-306.47,0.000125,2]
[361721319,1747727442196,-306.47,0.000125,2]
[361721320,1747727442206,-1000.0,0.00012508,2]
[361721321,1747727442215,-689.0,0.00012511,2]
[361721322,1747727442225,-410.2,0.00012521,2]
[361721323,1747727442235,-689.0,0.00012538,2]
[361721324,1747727442245,-342.73,0.00012551,2]
[361721325,1747727442255,-689.0,0.00012566,2]
[361721326,1747727442265,-689.0,0.00012593,2]
[361721327,1747727442738,-200.0,0.00012617,2]
[361721328,1747727442748,-250.0,0.00012617,2]
[361721329,1747727442758,-689.0,0.00012621,2]
[361721330,1747727442767,-689.0,0.00012648,2]
[361721331,1747727442777,-150.0,0.00012653,2]
[361721332,1747727442787,-150.0,0.00012657,2]
[361721333,1747727442799,-689.0,0.00012675,2]
[361721334,1747727442809,-154.29392547,0.00012701,2]
[361721335,1747727442818,-689.0,0.00012703,2]
[361721336,1747727442828,-150.0,0.00012711,2]
[361721338,1747727442838,-150.0,0.00012722,2]
[361721339,1747727442848,-696.68589277,0.0001273,2]
[361721340,1747727442858,-150.0,0.00012757,2]
[361721341,1747727442868,-150.0,0.00012769,2]
[361721342,1747727442878,-150.0,0.00012777,2]
[361721343,1747727442888,-150.0,0.00012786,2]
[361721344,1747727442897,-150.0,0.00012851,2]
[361721345,1747727442907,-150.0,0.00012873,2]
[361721346,1747727442917,-1100.0,0.00012876,2]
[361721347,1747727442927,-911.8,0.00012877,2]
[361721348,1747727442936,-170.08,0.00012877,2]
[361721350,1747727442947,-1240.61484475,0.000129,2]
[361721351,1747727442958,-441.98,0.00012932,2]
[361721352,1747727442968,-1680.0,0.00012934,2]
[361721353,1747727442992,-306.47,0.0001299,2]
[361721354,1747727443003,-4287.50311303,0.00013,2]
[361721355,1747727443013,-1550.49488036,0.00013,2]
[361721356,1747727443025,-1753.0,0.00013,2]
[361721357,1747727443035,-693.3919763,0.00013006,2]
[361721358,1747727443046,-2055.55968307,0.0001305,2]
[361721359,1747727443069,-1633.00973577,0.0001305,2]
[361721362,1747727443216,-1488.74210483,0.0001305,2]
[361721363,1747727443227,-6311.25789517,0.000131,2]
[361721364,1747727443239,-658.37860201,0.000131,2]
[361721365,1747727443254,-254.537333,0.000131,2]
[361721366,1747727443270,-2070.63712286,0.000131,2]
[361721367,1747727443283,-985.58336453,0.000131,2]
[361721368,1747727443297,-988.13522949,0.000131,2]
[361721369,1747727443317,-1754.86102356,0.000131,2]
[361721370,1747727443327,-10038.51835932,0.000131,2]
[361721371,1747727443338,-1340.0,0.000131,2]
[361721372,1747727443348,-766.0,0.000131,2]
[361721373,1747727443357,-964.83,0.0001339,2]
[361721374,1747727443368,-170.07,0.00013415,2]
[361721375,1747727443378,-170.07,0.00013415,2]
[361721376,1747727443388,-170.08,0.00013415,2]
[361721377,1747727443399,-339.32,0.00013415,2]
[361721378,1747727443415,-170.07,0.00013415,2]
[361721379,1747727443426,-340.11,0.00013415,2]
[361721380,1747727443437,-170.08,0.00013415,2]
[361721381,1747727443448,-339.98,0.00013415,2]
[361721383,1747727443458,-150.0,0.00013426,2]
[361721385,1747727443468,-150.0,0.00013429,2]
[361721387,1747727443478,-150.0,0.0001343,2]
[361721389,1747727443488,-150.0,0.00013433,2]
[361721393,1747727443499,-150.0,0.00013434,2]
[361721395,1747727443509,-150.0,0.00013437,2]
[361721397,1747727443518,-150.0,0.00013441,2]
[361721399,1747727443529,-150.0,0.00013443,2]
[361721401,1747727443540,-150.0,0.00013445,2]
[361721403,1747727443549,-1000.0,0.00013445,2]
[361721405,1747727443560,-150.0,0.00013446,2]
[361721407,1747727443569,-1000.0,0.00013447,2]
[361721408,1747727443579,-1000.0,0.00013462,2]
[361721409,1747727443590,-150.0,0.00013463,2]
[361721410,1747727443600,-150.0,0.00013463,2]
[361721411,1747727443610,-150.0,0.00013471,2]
[361721412,1747727443620,-150.0,0.00013472,2]
[361721413,1747727443631,-150.0,0.00013476,2]
[361721414,1747727443642,-150.0,0.00013478,2]
[361721415,1747727443652,-150.0,0.00013485,2]
[361721416,1747727443663,-488.62258476,0.00013486,2]
[361721417,1747727443673,-150.0,0.0001349,2]
[361721418,1747727443683,-150.0,0.0001349,2]
[361721419,1747727443695,-1000.0,0.00013491,2]
[361721420,1747727443705,-150.0,0.00013493,2]
[361721421,1747727443716,-150.0,0.000135,2]
[361721422,1747727443727,-150.0,0.00013505,2]
[361721423,1747727443738,-150.0,0.00013509,2]
[361721424,1747727443748,-150.0,0.00013519,2]
[361721425,1747727443759,-150.0,0.00013521,2]
[361721426,1747727443770,-150.0,0.00013521,2]
[361721427,1747727443783,-150.0,0.00013523,2]
[361721428,1747727443797,-150.0,0.00013535,2]
[361721429,1747727443812,-150.0,0.00013535,2]
[361721430,1747727443828,-150.0,0.00013535,2]
[361721431,1747727443838,-1000.0,0.0001354,2]
[361721432,1747727443849,-150.0,0.00013541,2]
[361721433,1747727443865,-1000.0,0.00013543,2]
[361721434,1747727443876,-150.0,0.00013544,2]
[361721435,1747727443887,-600.0,0.00013548,2]
[361721436,1747727443898,-719.04747942,0.00013554,2]
[361721437,1747727443909,-1000.0,0.00013557,2]
[361721438,1747727443919,-150.0,0.00013558,2]
[361721439,1747727443930,-150.0,0.00013558,2]
[361721440,1747727443940,-1000.0,0.00013564,2]
[361721441,1747727443952,-150.0,0.0001357,2]
[361721442,1747727443963,-150.0,0.00013571,2]
[361721443,1747727443973,-150.0,0.00013573,2]
[361721444,1747727443984,-150.0,0.00013575,2]
[361721445,1747727443995,-150.0,0.00013576,2]
[361721446,1747727444005,-150.0,0.00013576,2]
[361721447,1747727444016,-150.0,0.00013579,2]
[361721448,1747727444026,-150.0,0.0001358,2]
[361721449,1747727444037,-150.0,0.00013584,2]
[361721450,1747727444047,-150.0,0.00013585,2]
[361721451,1747727444058,-150.0,0.00013586,2]
[361721452,1747727444069,-150.0,0.00013587,2]
[361721453,1747727444079,-150.0,0.00013589,2]
[361721454,1747727444089,-306.47,0.0001359,2]
[361721455,1747727444104,-150.0,0.00013591,2]
[361721456,1747727444115,-150.0,0.00013592,2]
[361721457,1747727444126,-150.0,0.00013595,2]
[361721458,1747727444138,-30224.82315405,0.000136,2]
[361721459,1747727444149,-150.0,0.00013601,2]
[361721460,1747727444160,-150.0,0.00013602,2]
[361721461,1747727444172,-150.0,0.00013608,2]
[361721462,1747727444182,-150.0,0.00013613,2]
[361721463,1747727444192,-1000.0,0.00013618,2]
[361721464,1747727444203,-150.0,0.0001362,2]
[361721465,1747727444213,-150.0,0.0001363,2]
[361721466,1747727444223,-152.805892,0.00013631,2]
[361721467,1747727444234,-150.0,0.00013635,2]
[361721468,1747727444244,-150.0,0.00013636,2]
[361721469,1747727444254,-150.0,0.00013637,2]
[361721470,1747727444265,-150.0,0.00013637,2]
[361721471,1747727444275,-171.91482889,0.00013637,2]
[361721472,1747727444285,-150.0,0.0001364,2]
[361721473,1747727444295,-150.0,0.00013643,2]
[361721474,1747727444306,-150.0,0.00013643,2]
[361721475,1747727444316,-150.0,0.00013647,2]
[361721476,1747727444325,-150.0,0.00013647,2]
[361721477,1747727444336,-150.0,0.00013651,2]
[361721478,1747727444346,-150.0,0.00013653,2]
[361721479,1747727444356,-150.0,0.00013656,2]
[361721480,1747727444366,-306.47,0.00013657,2]
[361721481,1747727444377,-1000.0,0.00013659,2]
[361721482,1747727444386,-1000.0,0.00013665,2]
[361721483,1747727444397,-400.0,0.00013666,2]
[361721484,1747727444407,-500.0,0.00013667,2]
[361721485,1747727444418,-500.0,0.00013667,2]
[361721486,1747727444428,-500.0,0.00013667,2]
[361721487,1747727444438,-500.0,0.00013667,2]
[361721488,1747727444449,-500.0,0.00013667,2]
[361721489,1747727444461,-500.0,0.00013667,2]
[361721490,1747727444472,-500.0,0.00013667,2]
[361721491,1747727444482,-500.0,0.00013667,2]
[361721492,1747727444493,-500.0,0.00013667,2]
[361721493,1747727444503,-500.0,0.00013667,2]
[361721494,1747727444513,-500.0,0.00013667,2]
[361721495,1747727444523,-500.0,0.00013667,2]
[361721496,1747727444533,-500.0,0.00013667,2]
[361721497,1747727444543,-500.0,0.00013667,2]
[361721498,1747727444553,-500.0,0.00013667,2]
[361721499,1747727444564,-500.0,0.00013667,2]
[361721500,1747727444574,-283.62149703,0.00013667,2]
[361721501,1747727444605,-216.37850297,0.00013667,2]
[361721502,1747727444615,-56.11045031,0.00013667,2]
[361721507,1747727446096,-237.0,0.00013,2]
[361721508,1747727446109,-268.61347831,0.00013667,2]
[361721509,1747727446123,-175.27607138,0.00013667,2]
[361721510,1747727446133,-500.0,0.00013667,2]
[361721511,1747727446145,-500.0,0.00013667,2]
[361721512,1747727446155,-500.0,0.00013667,2]
[361721513,1747727446165,-500.0,0.00013667,2]
[361721514,1747727446177,-500.0,0.00013667,2]
[361721515,1747727446191,-500.0,0.00013667,2]
[361721516,1747727446202,-500.0,0.00013667,2]
[361721517,1747727446212,-500.0,0.00013667,2]
[361721518,1747727446222,-500.0,0.00013667,2]
[361721519,1747727446234,-500.0,0.00013667,2]
[361721520,1747727446245,-500.0,0.00013667,2]
[361721521,1747727446255,-500.0,0.00013667,2]
[361721522,1747727446266,-500.0,0.00013667,2]
[361721523,1747727446277,-500.0,0.00013667,2]
[361721524,1747727446287,-500.0,0.00013667,2]
[361721525,1747727446298,-500.0,0.00013667,2]
[361721526,1747727446308,-500.0,0.00013667,2]
[361721527,1747727446317,-500.0,0.00013667,2]
[361721528,1747727446328,-500.0,0.00013667,2]
[361721529,1747727446338,-500.0,0.00013667,2]
[361721530,1747727446349,-500.0,0.00013667,2]
[361721531,1747727446359,-500.0,0.00013667,2]
[361721532,1747727446368,-500.0,0.00013667,2]
[361721533,1747727446379,-500.0,0.00013667,2]
[361721534,1747727446388,-500.0,0.00013667,2]
[361721535,1747727446400,-500.0,0.00013667,2]
[361721536,1747727446411,-500.0,0.00013667,2]
[361721537,1747727446420,-638.0,0.00013667,2]
[361721538,1747727446434,-500.0,0.00013667,2]
[361721539,1747727446445,-500.0,0.00013667,2]
[361721540,1747727446456,-500.0,0.00013667,2]
[361721541,1747727446466,-997.0,0.00013667,2]
[361721542,1747727446476,-150.0,0.0001367,2]
[361721543,1747727446487,-150.0,0.00013672,2]
[361721544,1747727446497,-150.0,0.00013678,2]
[361721545,1747727446507,-150.0,0.00013678,2]
[361721546,1747727446519,-150.0,0.00013681,2]
[361721547,1747727446529,-150.0,0.00013687,2]
[361721548,1747727446539,-2615.7016869,0.00013689,2]
[361721549,1747727446550,-407.27,0.00013698,2]
[361721550,1747727446560,-200.0,0.00013699,2]
[361721551,1747727446571,-989.74,0.00013699,2]
[361721552,1747727446581,-500.0,0.00013699,2]
[361721553,1747727446591,-500.55330733,0.00013699,2]
[361721554,1747727446601,-500.0,0.00013699,2]
[361721555,1747727446612,-501.07140179,0.00013699,2]
[361721556,1747727446622,-500.0,0.00013699,2]
[361721557,1747727446632,-500.0,0.00013699,2]
[361721558,1747727446643,-500.0,0.00013699,2]
[361721559,1747727446653,-500.0,0.00013699,2]
[361721560,1747727446663,-500.0,0.00013699,2]
[361721561,1747727446672,-221.3689381,0.00013699,2]
[361721562,1747727447355,-278.6310619,0.00013699,2]
[361721563,1747727447365,-63.13893814,0.00013699,2]
[361721564,1747727447378,-516.77283524,0.00013699,2]
[361721565,1747727447390,-354.84481796,0.00013699,2]
[361721566,1747727447403,-145.15518204,0.00013699,2]
[361721567,1747727447413,-500.0,0.00013699,2]
[361721568,1747727447423,-500.0,0.00013699,2]
[361721569,1747727447433,-536.90695937,0.00013699,2]
[361721570,1747727447445,-500.0,0.00013699,2]
[361721571,1747727447456,-272.52286354,0.00013699,2]
[361721572,1747727447466,-500.0,0.00013699,2]
[361721573,1747727447477,-500.0,0.00013699,2]
[361721574,1747727447487,-500.0,0.00013699,2]
[361721575,1747727447497,-500.0,0.00013699,2]
[361721576,1747727447507,-340.61499505,0.00013699,2]
[361721577,1747727448628,-159.38500495,0.00013699,2]
[361721578,1747727448638,-500.0,0.00013699,2]
[361721579,1747727448648,-500.0,0.00013699,2]
[361721580,1747727448657,-500.0,0.00013699,2]
[361721581,1747727448666,-500.0,0.00013699,2]
[361721582,1747727448676,-500.0,0.00013699,2]
[361721583,1747727448685,-196.78299085,0.00013699,2]
[361721584,1747727448698,-303.21700915,0.00013699,2]
[361721585,1747727448708,-226.32299548,0.00013699,2]
[361721586,1747727448717,-3049.24351313,0.000137,2]
[361721587,1747727448749,-2391.05648687,0.000137,2]
[361721588,1747727448759,-4958.82662382,0.000137,2]
[361721589,1747727448771,-481.47337618,0.000137,2]
[361721590,1747727448781,-484.26,0.00013734,2]
[361721591,1747727448790,-375.0,0.000138,2]
[361721592,1747727448800,-304.00873093,0.00013827,2]
[361721593,1747727448810,-215.0738,0.00013827,2]
[361721594,1747727448820,-1000.0,0.00013898,2]
[361721595,1747727448830,-447.04859373,0.00013917,2]
[361721596,1747727448840,-257.9252773,0.00013917,2]
[361721597,1747727448850,-309.3906624,0.00013917,2]
[361721598,1747727448860,-595.04115008,0.00013917,2]
[361721599,1747727448871,-1240.61484466,0.00013934,2]
[361721600,1747727448881,-151.186776,0.00013944,2]
[361721601,1747727448892,-151.0,0.00013944,2]
[361721602,1747727448902,-151.0,0.00013944,2]
[361721603,1747727448911,-151.0,0.00013944,2]
[361721604,1747727448921,-9.07678872,0.00013944,2]
[361721605,1747727448946,-141.92321128,0.00013944,2]
[361721606,1747727448956,-169.609236,0.00013944,2]
[361721607,1747727448967,-151.0,0.00013944,2]
[361721608,1747727448977,-151.0,0.00013944,2]
[361721609,1747727448987,-151.0,0.00013944,2]
[361721610,1747727448997,-151.0,0.00013944,2]
[361721611,1747727449008,-151.0,0.00013944,2]
[361721612,1747727449018,-151.0,0.00013944,2]
[361721613,1747727449029,-151.0,0.00013944,2]
[361721614,1747727449039,-151.0,0.00013944,2]
[361721615,1747727449049,-151.0,0.00013944,2]
[361721616,1747727449059,-151.0,0.00013944,2]
[361721617,1747727449069,-151.0,0.00013944,2]
[361721618,1747727449079,-151.0,0.00013944,2]
[361721619,1747727449089,-151.0,0.00013944,2]
[361721620,1747727449103,-152.11769,0.00013944,2]
[361721621,1747727449112,-1074.766758,0.00013944,2]
[361721622,1747727449122,-927.48977,0.00013944,2]
[361721623,1747727449131,-927.48977,0.00013944,2]
[361721624,1747727449141,-151.0,0.00013944,2]
[361721625,1747727449151,-342.73,0.00013946,2]
[361721626,1747727449160,-151.0,0.0001395,2]
[361721627,1747727449170,-152.210989,0.00013952,2]
[361721628,1747727449181,-151.0,0.00013952,2]
[361721629,1747727449191,-151.0,0.00013961,2]
[361721630,1747727449201,-151.0,0.00013961,2]
[361721631,1747727449211,-151.0,0.00013961,2]
[361721632,1747727449221,-151.0,0.00013961,2]
[361721633,1747727449231,-751.26664699,0.0001397,2]
[361721634,1747727449241,-306.47,0.00013989,2]
[361721635,1747727449251,-669.08576266,0.00013998,2]
[361721636,1747727449261,-47145.01066759,0.00013999,2]
[361721637,1747727449270,-151.0,0.00014038,2]
[361721638,1747727449280,-745.65223616,0.00014102,2]
[361721639,1747727449291,-161.28,0.00014145,2]
[361721640,1747727449301,-1594.0,0.00014227,2]
[361721641,1747727449311,-1100.0,0.00014246,2]
[361721642,1747727449321,-974.81439784,0.00014247,2]
[361721643,1747727449332,-1000.0,0.00014247,2]
[361721644,1747727449341,-151.0,0.00014274,2]
[361721645,1747727449351,-250.0,0.00014305,2]
[361721646,1747727449361,-151.0,0.00014377,2]
[361721647,1747727449371,-162.9,0.000145,2]
[361721648,1747727449380,-707.06626899,0.0001465,2]
[361721649,1747727449390,-1500.0,0.00014795,2]
[361721650,1747727449400,-306.47,0.0001489,2]
[361721651,1747727449410,-25691.92349986,0.000149,2]
[361721652,1747727449420,-151.0,0.000149,2]
[361721653,1747727449429,-151.0,0.000149,2]
[361721654,1747727449439,-1240.61484466,0.00014969,2]
[361721655,1747727449449,-151.0,0.00014969,2]
[361721656,1747727449458,-183.827155,0.00014969,2]
[361721657,1747727449468,-600.0,0.00015,5]
[361721658,1747727449478,-250.0,0.00015,2]
[361721659,1747727449488,-250.0,0.00015,2]
[361721660,1747727449497,-407.27,0.00015068,2]
[361721661,1747727449507,-900.0,0.00015068,2]
[361721662,1747727449518,-300.0,0.0001516,2]
[361721663,1747727449528,-223.0315306,0.00015196,2]
[361721664,1747727449537,-151.589443,0.0001522,2]
[361721665,1747727449548,-799.0,0.0001522,2]
[361721666,1747727449558,-650.241,0.0001522,2]
[361721667,1747727449568,-4045.0,0.0001522,2]
[361721668,1747727449577,-154.0,0.0001522,2]
[361721669,1747727449586,-1000.0,0.00015288,2]
[361721670,1747727449595,-195.0218078,0.000153,2]
[361721671,1747727449605,-1410.5325165,0.000153,2]
[361721672,1747727449614,-306.47,0.000153,2]
[361721673,1747727449623,-17771.93,0.0001531,2]
[361721674,1747727449632,-9388.05,0.0001531,2]
[361721675,1747727449641,-342.73,0.0001534,2]
[361721676,1747727449650,-151.0,0.00015342,2]
[361721677,1747727449660,-151.0,0.00015342,2]
[361721678,1747727449669,-151.0,0.00015342,2]
[361721679,1747727449678,-2000.0,0.00015342,2]
[361721680,1747727449687,-151.0,0.000154,2]
[361721681,1747727449696,-192.14,0.00015614,2]
[361721682,1747727449706,-1100.0,0.00015616,2]
[361721683,1747727449715,-672.82376719,0.0001589,2]
[361721684,1747727449725,-153.923478,0.0001597,2]
[361721685,1747727449734,-151.0,0.0001597,2]
[361721686,1747727449743,-700.0,0.0001597,2]
[361721687,1747727449753,-798.16355582,0.0001597,2]
[361721688,1747727449763,-151.0,0.0001597,2]
[361721689,1747727449771,-151.0,0.0001597,2]
[361721690,1747727449781,-484.26,0.00015998,2]
[361721691,1747727449791,-1240.61484466,0.00016003,2]
[361721692,1747727449800,-9999.99,0.00016116,2]
[361721693,1747727449811,-238.62931965,0.00016164,2]
[361721694,1747727449820,-407.27,0.00016438,2]
[361721695,1747727449830,-500.0,0.00016438,2]
[361721696,1747727449839,-500.0,0.00016438,2]
[361721697,1747727449849,-500.0,0.00016438,2]
[361721698,1747727449859,-500.0,0.00016438,2]
[361721699,1747727449869,-500.0,0.00016438,2]
[361721700,1747727449879,-500.0,0.00016438,2]
[361721701,1747727449888,-500.0,0.00016438,2]
[361721702,1747727449898,-500.0,0.00016438,2]
[361721703,1747727449907,-599.80154607,0.00016438,2]
[361721704,1747727449917,-500.0,0.00016438,2]
[361721705,1747727449927,-300.0,0.00016438,2]
[361721706,1747727449937,-900.0,0.00016438,2]
[361721707,1747727449947,-300.0,0.0001653,2]
[361721708,1747727449957,-1774.31413689,0.00016548,2]
[361721709,1747727449966,-231.28369723,0.00016565,2]
[361721710,1747727449976,-1774.31413689,0.0001663,2]
[361721711,1747727449986,-150.0,0.00016633,2]
[361721712,1747727449995,-300.0,0.00016634,2]
[361721713,1747727450005,-300.83,0.00016634,2]
[361721714,1747727450015,-230.29,0.00016634,2]
[361721715,1747727450025,-1176.6,0.00016634,2]
[361721716,1747727450035,-2315.99,0.00016634,2]
[361721717,1747727450045,-365.96,0.00016634,2]
[361721718,1747727450055,-1000.0,0.00016677,2]
[361721719,1747727450064,-1774.31413689,0.00016685,2]
[361721720,1747727450074,-2000.0,0.000167,2]
[361721721,1747727450083,-342.73,0.00016735,2]
[361721722,1747727450093,-1774.31413689,0.0001674,2]
[361721723,1747727450109,-168.56,0.0001679,2]
[361721724,1747727450118,-1774.31413689,0.00016822,2]
[361721725,1747727450128,-1774.31413689,0.00016877,2]
[361721726,1747727450137,-159.0691359,0.00016883,2]
[361721727,1747727450147,-501.1328936,0.000169,2]
[361721728,1747727450156,-500.74291645,0.000169,2]
[361721729,1747727450167,-520.6827902,0.000169,2]
[361721730,1747727450177,-500.36503073,0.000169,2]
[361721731,1747727450186,-1774.31413689,0.00016959,2]
[361721732,1747727450195,-161.28,0.00016974,2]
[361721733,1747727450205,-300.0,0.00017,2]
[361721734,1747727450215,-300.0,0.00017,2]
[361721735,1747727450224,-1774.31413689,0.00017014,2]
[361721736,1747727450234,-1240.61484466,0.00017038,2]
[361721737,1747727450243,-1774.31413689,0.00017096,2]
[361721738,1747727450253,-203.0,0.00017145,8]
[361721739,1747727450262,-1774.31413689,0.00017151,2]
[361721740,1747727450272,-1774.31413689,0.00017205,2]
[361721741,1747727450282,-1774.31413689,0.00017288,2]
[361721742,1747727450291,-151.0,0.000173,2]
[361721743,1747727450301,-340.14,0.00017385,2]
[361721744,1747727450310,-170.08,0.00017385,2]
[361721745,1747727450320,-170.07,0.00017385,2]
[361721746,1747727450329,-1158.37,0.00017456,2]
[361721747,1747727450339,-230.02,0.00017456,2]
[361721748,1747727450348,-150.2,0.00017456,2]
[361721749,1747727450357,-153.89,0.00017456,2]
[361721750,1747727450367,-150.32,0.00017456,2]
[361721751,1747727450376,-353.3,0.00017456,2]
[361721752,1747727450386,-352.99,0.00017456,2]
[361721753,1747727450395,-299.33,0.00017456,2]
[361721754,1747727450406,-905.44,0.00017456,2]
[361721755,1747727450416,-452.72,0.00017456,2]
[361721756,1747727450425,-453.17,0.00017456,2]
[361721757,1747727450435,-352.52,0.00017456,2]
[361721758,1747727450444,-353.24,0.00017456,2]
[361721759,1747727450454,-152.0,0.00017628,3]
[361721760,1747727450464,-1002.9979647,0.000178,14]
[361721761,1747727450474,-407.27,0.00017808,2]
[361721762,1747727450483,-900.0,0.00017808,2]
[361721763,1747727450493,-164.63911964,0.00017819,2]
[361721764,1747727450502,-162.9,0.000179,2]
[361721765,1747727450511,-239.84119403,0.00017934,2]
[361721766,1747727450523,-680.0,0.00018,5]
[361721767,1747727450533,-400.24987163,0.00018,2]
[361721768,1747727450543,-201.825371,0.00018,2]
[361721769,1747727450552,-1240.61484466,0.00018072,2]
[361721770,1747727450562,-152.0,0.00018147,4]
[361721771,1747727450571,-339.93,0.00018207,2]
[361721772,1747727450580,-799.0,0.0001822,2]
[361721773,1747727450590,-4045.0,0.0001822,2]
[361721774,1747727450600,-154.0,0.0001822,2]
[361721775,1747727450609,-484.26,0.00018262,2]
[361721776,1747727450619,-453.11,0.00018278,2]
[361721777,1747727450628,-242.14,0.00018278,2]
[361721778,1747727450638,-453.11,0.00018278,2]
[361721779,1747727450647,-353.24,0.00018278,2]
[361721780,1747727450657,-453.11,0.00018278,2]
[361721781,1747727450667,-353.24,0.00018278,2]
[361721782,1747727450676,-150.32,0.00018278,2]
[361721783,1747727450686,-353.24,0.00018278,2]
[361721784,1747727450695,-244.04,0.00018278,2]
[361721785,1747727450705,-353.24,0.00018278,2]
[361721786,1747727450715,-150.32,0.00018278,2]
[361721787,1747727450725,-706.48,0.00018278,2]
[361721788,1747727450734,-703.67,0.00018278,2]
[361721789,1747727450743,-162.78,0.00018278,2]
[361721790,1747727450752,-293.96,0.00018278,2]
[361721791,1747727450762,-162.76,0.00018278,2]
[361721792,1747727450771,-162.76,0.00018278,2]
[361721793,1747727450781,-318.74,0.00018278,2]
[361721794,1747727450791,-162.76,0.00018278,2]
[361721795,1747727450800,-162.76,0.00018278,2]
[361721796,1747727450809,-331.56,0.00018278,2]
[361721797,1747727450819,-1100.0,0.00018356,2]
[361721798,1747727450828,-152.0,0.00018665,5]
[361721799,1747727450837,-2546.8880103,0.00018867,2]
[361721800,1747727450848,-151.0,0.00018879,2]
[361721801,1747727450858,-151.0,0.00018879,2]
[361721802,1747727450868,-154.720113,0.0001888,2]
[361721803,1747727450878,-151.0,0.0001888,2]
[361721804,1747727450888,-151.0,0.0001888,2]
[361721805,1747727450897,-151.0,0.0001888,2]
[361721806,1747727450907,-155.432099,0.0001888,2]
[361721807,1747727450917,-151.0,0.0001888,2]
[361721808,1747727450926,-151.0,0.0001888,2]
[361721809,1747727450937,-151.0,0.0001888,2]
[361721810,1747727450947,-151.0,0.0001888,2]
[361721811,1747727450957,-151.0,0.0001888,2]
[361721812,1747727450966,-151.0,0.0001888,2]
[361721813,1747727450975,-151.0,0.0001888,2]
[361721814,1747727451309,-153.099408,0.0001888,2]
[361721815,1747727451339,-151.0,0.0001888,2]